bitfinex/quotes_BTCUSD_20241022
["timestamp","ask_amount","ask_price","bid_price","bid_amount"]
[1729578742363,0.18109274,67796.0,67795.0,0.001654]
[1729578742833,0.18109274,67796.0,67795.0,0.03427592]
[1729578743064,0.18109274,67796.0,67795.0,0.001654]
[1729578743305,0.18109274,67796.0,67795.0,0.03427592]
[1729578743533,0.18109274,67796.0,67795.0,0.001654]
[1729578743766,0.18109274,67796.0,67795.0,0.03427592]
[1729578745671,0.32859374,67796.0,67795.0,0.03427592]
[1729578746350,0.18109274,67796.0,67795.0,0.03427592]
[1729578746817,0.18104256,67796.0,67795.0,0.03427592]
[1729578750149,0.18104256,67796.0,67795.0,0.001654]
[1729578750592,0.18104256,67796.0,67795.0,0.03428561]
[1729578751731,0.16522356,67796.0,67795.0,0.03428561]
[1729578751955,0.32851072,67796.0,67795.0,0.03428561]
[1729578752427,0.32851072,67796.0,67795.0,0.001654]
[1729578754059,0.32051072,67796.0,67795.0,0.001654]
[1729578754324,0.31151072,67796.0,67795.0,0.002654]
[1729578755405,0.31151072,67796.0,67795.0,0.001654]
[1729578756748,0.3114989,67796.0,67795.0,0.001654]
[1729578757901,0.3114989,67796.0,67795.0,0.03428845]
[1729578758121,0.3114989,67796.0,67795.0,0.001654]
[1729578758342,0.3114989,67796.0,67795.0,0.03428845]
[1729578758560,0.3114989,67796.0,67795.0,0.001654]
[1729578759009,0.3114989,67796.0,67795.0,0.03428845]
[1729578760133,0.1639979,67796.0,67795.0,0.12898845]
[1729578760589,0.1639979,67796.0,67795.0,0.21058845]
[1729578760867,0.00072256,67796.0,67795.0,0.13097122]
[1729578761101,0.04494901,67796.0,67795.0,0.74978022]
[1729578761328,0.00072256,67796.0,67795.0,0.74978022]
[1729578761556,0.00072256,67796.0,67795.0,0.65508022]
[1729578762251,0.00272256,67796.0,67795.0,0.75108022]
[1729578762483,0.00372256,67796.0,67795.0,0.75108022]
[1729578762946,0.003,67796.0,67795.0,0.75108022]
[1729578763894,0.00372256,67796.0,67795.0,0.75108022]
[1729578764120,0.04794901,67796.0,67795.0,0.75108022]
[1729578764341,0.00372256,67796.0,67795.0,0.75108022]
[1729578765845,0.0700633,67796.0,67795.0,0.75108022]
[1729578766076,0.00372256,67796.0,67795.0,0.75108022]
[1729578767213,0.0700648,67796.0,67795.0,0.75108022]
[1729578767918,0.0700648,67796.0,67795.0,0.65891363]
[1729578768149,0.2175658,67796.0,67795.0,0.13028845]
[1729578768373,0.3144996,67796.0,67795.0,0.03428845]
[1729578768843,0.3144996,67796.0,67795.0,0.001654]
[1729578769059,0.3124996,67796.0,67795.0,0.03585803]
[1729578769281,0.3114996,67796.0,67795.0,0.001654]
[1729578769501,0.3124996,67796.0,67795.0,0.03785803]
[1729578769727,0.3124996,67796.0,67795.0,0.003654]
[1729578769969,0.3114996,67796.0,67795.0,0.03585803]
[1729578770502,0.3124996,67796.0,67795.0,0.03685803]
[1729578770721,0.3114996,67796.0,67795.0,0.03585803]
[1729578771154,0.3124996,67796.0,67795.0,0.03685803]
[1729578771368,0.3134996,67796.0,67795.0,0.03785803]
[1729578771579,0.3134996,67796.0,67795.0,0.003654]
[1729578772030,0.3134996,67796.0,67795.0,0.03785803]
[1729578772446,0.1659986,67796.0,67795.0,0.03785803]
[1729578776576,0.16601007,67796.0,67795.0,0.03785803]
[1729578777048,0.16601007,67796.0,67795.0,0.36927721]
[1729578777274,0.00272256,67796.0,67795.0,0.36927721]
[1729578777509,0.00172256,67796.0,67795.0,0.36827721]
[1729578777732,0.00272256,67796.0,67795.0,0.36927721]
[1729578777974,0.00172256,67796.0,67795.0,0.36827721]
[1729578778201,0.00472256,67796.0,67795.0,0.36827721]
[1729578778434,0.00372256,67796.0,67795.0,0.36276103]
[1729578778658,0.27457069,67796.0,67795.0,0.21525803]
[1729578778901,0.17198914,67796.0,67795.0,0.21525803]
[1729578779142,0.008,67796.0,67795.0,0.40410739]
[1729578779370,0.005,67796.0,67795.0,0.55161039]
[1729578779594,0.005,67796.0,67795.0,0.4594438]
[1729578779808,0.005,67796.0,67795.0,0.55161039]
[1729578780534,0.01,67796.0,67795.0,0.36276103]
[1729578780769,0.00572256,67796.0,67795.0,0.13225803]
[1729578781004,0.00772256,67796.0,67795.0,0.03685803]
[1729578781449,0.16397521,67796.0,67795.0,0.03685803]
[1729578781683,0.16597521,67796.0,67795.0,0.03685803]
[1729578781905,0.16597521,67796.0,67795.0,0.36517721]
[1729578781906,0.06833851,67796.0,67795.0,0.36517721]
[1729578782134,0.05122535,67796.0,67795.0,0.36517721]
[1729578782628,0.04922535,67796.0,67795.0,0.36517721]
[1729578783505,0.06716551,67798.0,67795.0,0.36517721]
[1729578783506,0.04422535,67797.0,67795.0,0.21767421]
[1729578783724,0.04422535,67797.0,67796.0,0.23966759]
[1729578784217,0.04422535,67797.0,67796.0,0.26812323]
[1729578784658,0.04421839,67797.0,67796.0,0.26812323]
[1729578784881,0.04494095,67797.0,67796.0,0.26812323]
[1729578785346,0.00072256,67797.0,67796.0,0.26812323]
[1729578785791,0.00072256,67797.0,67796.0,0.26912323]
[1729578786019,0.04504539,67798.0,67797.0,0.147499]
[1729578786240,0.04504539,67798.0,67797.0,0.15201518]
[1729578786493,0.04504539,67798.0,67797.0,0.18046929]
[1729578787180,0.04576795,67798.0,67797.0,0.18046929]
[1729578787402,0.00154956,67798.0,67797.0,0.18046929]
[1729578787858,0.00254956,67798.0,67797.0,0.18046929]
[1729578788089,0.00254956,67798.0,67797.0,0.02845411]
[1729578788090,0.06886826,67798.0,67797.0,0.02845411]
[1729578788314,0.40541817,67798.0,67797.0,0.02845411]
[1729578788538,0.14822356,67796.0,67795.0,0.001654]
[1729578788756,0.31142958,67796.0,67795.0,0.001654]
[1729578789431,0.3114443,67796.0,67795.0,0.001654]
[1729578789665,0.1639433,67796.0,67795.0,0.001654]
[1729578789877,0.1639433,67796.0,67795.0,0.03011118]
[1729578791063,0.1649433,67796.0,67795.0,0.03811118]
[1729578792527,0.1659433,67796.0,67795.0,0.04411118]
[1729578794237,0.16594124,67796.0,67795.0,0.04411118]
[1729578798587,0.56318521,67796.0,67795.0,0.04411118]
[1729578799007,0.56318521,67796.0,67795.0,0.015654]
[1729578799267,0.48588521,67796.0,67795.0,0.015654]
[1729578799489,0.48589549,67796.0,67795.0,0.015654]
[1729578804368,0.48589379,67796.0,67795.0,0.015654]
[1729578809185,0.00072256,67790.0,67787.0,0.14752]
[1729578809414,0.00072256,67790.0,67789.0,0.22265268]
[1729578809626,0.00072256,67790.0,67788.0,0.03089439]
[1729578809838,0.04422154,67789.0,67788.0,0.03089439]
[1729578810087,0.04422154,67789.0,67787.0,0.23968659]
[1729578810310,0.00072256,67788.0,67784.0,0.095654]
[1729578810531,0.00072256,67788.0,67786.0,0.147521]
[1729578811007,0.00072256,67786.0,67784.0,0.001654]
[1729578811233,0.32069053,67785.0,67784.0,0.001654]
[1729578811460,0.48394894,67785.0,67784.0,0.001654]
[1729578811673,0.59449754,67785.0,67784.0,0.001654]
[1729578812100,0.48394894,67785.0,67784.0,0.001654]
[1729578812732,0.33642394,67785.0,67784.0,0.001654]
[1729578812940,0.43285473,67785.0,67784.0,0.001654]
[1729578813645,0.43985473,67785.0,67784.0,0.001654]
[1729578814105,0.43985473,67785.0,67784.0,0.02789173]
[1729578814583,0.35142394,67785.0,67784.0,0.02789173]
[1729578815417,0.49894894,67785.0,67784.0,0.02789173]
[1729578815638,0.58037973,67785.0,67784.0,0.02789173]
[1729578815885,0.57237973,67785.0,67784.0,0.001654]
[1729578816115,0.58837973,67785.0,67784.0,0.001654]
[1729578816332,0.49994894,67785.0,67784.0,0.001654]
[1729578816568,0.49294894,67785.0,67784.0,0.001654]
[1729578817027,0.60343336,67785.0,67784.0,0.001654]
[1729578817260,0.68423425,67785.0,67784.0,0.001654]
[1729578817517,0.57374894,67785.0,67784.0,0.001654]
[1729578817723,0.57474894,67785.0,67784.0,0.001654]
[1729578817941,0.56574894,67785.0,67784.0,0.001654]
[1729578818153,0.56674894,67785.0,67784.0,0.002654]
[1729578818369,0.67719191,67785.0,67784.0,0.002654]
[1729578818577,0.67619191,67785.0,67784.0,0.001654]
[1729578818794,0.40249053,67785.0,67784.0,0.001654]
[1729578818925,0.67499996,67785.0,67784.0,0.001654]
[1729578819138,0.56456082,67785.0,67784.0,0.001654]
[1729578821354,0.56456082,67785.0,67784.0,0.002654]
[1729578822408,0.67456082,67785.0,67784.0,0.002654]
[1729578822628,0.76776082,67785.0,67784.0,0.002654]
[1729578822880,0.76776082,67785.0,67783.0,0.001652]
[1729578822881,0.45693338,67784.0,67783.0,0.00012287]
[1729578823082,0.86112941,67784.0,67783.0,0.00012287]
[1729578823564,0.8609995,67784.0,67783.0,0.00012287]
[1729578825575,0.8649995,67784.0,67783.0,0.00012287]
[1729578825788,0.8719995,67784.0,67783.0,0.00012287]
[1729578826020,0.8679995,67784.0,67783.0,0.00012287]
[1729578826442,0.8739995,67784.0,67783.0,0.00012287]
[1729578827767,0.28374638,67778.0,67777.0,0.0001]
[1729578827992,0.7686125,67778.0,67777.0,0.0001]
[1729578828713,0.76844642,67778.0,67777.0,0.0001]
[1729578828944,0.86794642,67778.0,67777.0,0.0001]
[1729578830316,0.87194642,67778.0,67777.0,0.0001]
[1729578831194,0.96411301,67778.0,67777.0,0.0001]
[1729578831408,0.86694642,67778.0,67777.0,0.0001]
[1729578831620,0.87494642,67778.0,67777.0,0.0001]
[1729578831824,0.86694642,67778.0,67777.0,0.0001]
[1729578832272,0.87494642,67778.0,67777.0,0.0001]
[1729578832525,0.96711301,67778.0,67777.0,0.0001]
[1729578832752,0.96311301,67778.0,67777.0,0.0001]
[1729578832961,0.87794642,67778.0,67777.0,0.0001]
[1729578833420,0.87794642,67778.0,67765.0,0.001652]
[1729578833421,0.17176838,67768.0,67767.0,0.001652]
[1729578833643,0.57901852,67768.0,67767.0,0.001652]
[1729578833868,0.76379119,67768.0,67767.0,0.001652]
[1729578834080,0.67562532,67768.0,67767.0,0.001652]
[1729578834299,0.76377677,67768.0,67767.0,0.001652]
[1729578835152,0.76777677,67768.0,67767.0,0.001652]
[1729578835365,0.67962532,67768.0,67767.0,0.001652]
[1729578835574,0.68362532,67768.0,67767.0,0.001652]
[1729578835788,0.77177677,67768.0,67767.0,0.001652]
[1729578836014,0.68362532,67768.0,67767.0,0.001652]
[1729578836439,0.52089412,67768.0,67767.0,0.001652]
[1729578836644,0.68654566,67768.0,67767.0,0.001652]
[1729578836867,0.52389412,67768.0,67767.0,0.001652]
[1729578837308,0.58997926,67768.0,67767.0,0.001652]
[1729578837741,0.52389412,67768.0,67767.0,0.001652]
[1729578837956,0.58997925,67768.0,67767.0,0.001652]
[1729578838168,0.49781266,67768.0,67767.0,0.001652]
[1729578838399,0.58997925,67768.0,67767.0,0.001652]
[1729578839257,0.52389412,67768.0,67767.0,0.001652]
[1729578839910,0.53055032,67768.0,67767.0,0.001652]
[1729578840389,0.26544297,67768.0,67767.0,0.175452]
[1729578840628,0.26068171,67768.0,67767.0,0.20217434]
[1729578841094,0.008,67768.0,67767.0,0.34973834]
[1729578841573,0.00072256,67769.0,67768.0,0.147562]
[1729578842003,0.00072256,67769.0,67768.0,0.3540828]
[1729578843137,0.00772256,67769.0,67768.0,0.3540828]
[1729578843377,0.00772256,67769.0,67768.0,0.2065208]
[1729578843606,0.00772256,67769.0,67768.0,0.3540828]
[1729578843847,0.007,67769.0,67768.0,0.3540828]
[1729578844332,0.007,67769.0,67768.0,0.48797959]
[1729578844574,0.00072256,67770.0,67769.0,0.14756]
[1729578844829,0.00072256,67770.0,67769.0,0.31626]
[1729578845050,0.00072256,67770.0,67769.0,0.34297926]
[1729578846177,0.01472256,67770.0,67769.0,0.34297926]
[1729578849611,0.014,67770.0,67769.0,0.34749544]
[1729578850482,0.00072256,67775.0,67769.0,0.42258812]
[1729578850707,0.00072256,67785.0,67783.0,0.15204518]
[1729578850922,0.00072256,67785.0,67783.0,0.44732579]
[1729578851155,0.00072256,67785.0,67783.0,0.47534026]
[1729578852356,0.00072256,67785.0,67783.0,0.32781126]
[1729578852835,0.00072256,67785.0,67783.0,0.47534026]
[1729578853233,0.018827,67784.0,67783.0,0.47534026]
[1729578853471,0.018827,67784.0,67783.0,0.34144347]
[1729578855256,0.018827,67784.0,67783.0,0.47534026]
[1729578866431,0.018827,67784.0,67783.0,0.43366868]
[1729578867272,0.018827,67784.0,67783.0,0.43818486]
[1729578873063,0.000827,67790.0,67789.0,0.00451618]
[1729578873303,0.000827,67790.0,67789.0,0.39616602]
[1729578873532,0.000827,67790.0,67789.0,0.58437097]
[1729578874660,0.000827,67790.0,67789.0,0.58737097]
[1729578874888,0.000827,67790.0,67789.0,0.73633012]
[1729578875121,0.000827,67790.0,67789.0,0.73833012]
[1729578877108,0.000827,67790.0,67789.0,0.58937097]
[1729578883485,0.000827,67790.0,67789.0,1.03192097]
[1729578888285,0.000827,67790.0,67789.0,1.03413432]
[1729578889689,0.000827,67790.0,67789.0,1.03841176]
[1729578889911,0.000827,67802.0,67801.0,0.00451618]
[1729578890131,0.00072256,67812.0,67811.0,0.147468]
[1729578890349,0.000827,67815.0,67814.0,0.147462]
[1729578890590,0.32250956,67815.0,67814.0,0.02360932]
[1729578891041,0.32250956,67815.0,67805.0,0.15199618]
[1729578891042,0.147469,67811.0,67805.0,0.00451618]
[1729578891282,0.147469,67811.0,67805.0,0.15199718]
[1729578891490,0.147469,67811.0,67806.0,0.02362162]
[1729578891910,0.00072256,67813.0,67806.0,0.02362162]
[1729578891911,0.02372256,67813.0,67806.0,0.02362162]
[1729578892131,0.147468,67812.0,67806.0,0.02362162]
[1729578892342,0.147468,67812.0,67806.0,0.17109962]
[1729578892552,0.147468,67812.0,67807.0,0.147476]
[1729578892768,0.147468,67812.0,67808.0,0.02357737]
[1729578893192,0.001,67812.0,67808.0,0.02357737]
[1729578893427,0.004,67811.0,67808.0,0.02357737]
[1729578893851,0.023,67812.0,67808.0,0.02357737]
[1729578894059,0.023,67812.0,67808.0,0.03157737]
[1729578894517,0.023,67812.0,67808.0,0.02757737]
[1729578894734,0.006,67811.0,67808.0,0.02857737]
[1729578894957,0.023,67812.0,67808.0,0.17505137]
[1729578895403,0.023,67812.0,67809.0,0.147472]
[1729578895404,0.06707077,67812.0,67809.0,0.147472]
[1729578895626,0.005,67811.0,67809.0,0.147472]
[1729578895827,0.005,67811.0,67810.0,0.02607159]
[1729578896052,0.023,67812.0,67810.0,0.02607159]
[1729578896512,0.06707077,67812.0,67810.0,0.02607159]
[1729578896953,0.008,67811.0,67810.0,0.02707159]
[1729578897162,0.06707077,67812.0,67810.0,0.02807159]
[1729578897557,0.06707077,67812.0,67810.0,0.02907159]
[1729578897777,0.06707077,67812.0,67810.0,0.02807159]
[1729578898219,0.008,67811.0,67810.0,0.02907159]
[1729578898660,0.008,67811.0,67810.0,0.02707159]
[1729578898899,0.008,67811.0,67810.0,0.02807159]
[1729578899349,0.06789777,67812.0,67810.0,0.02607159]
[1729578899795,0.007,67811.0,67810.0,0.02807159]
[1729578900010,0.007,67811.0,67810.0,0.17454159]
[1729578900223,0.008,67811.0,67810.0,0.61695159]
[1729578900646,0.06792756,67812.0,67811.0,0.147468]
[1729578900865,0.06792756,67812.0,67810.0,0.47048159]
[1729578901083,0.06792756,67812.0,67811.0,0.17967703]
[1729578901981,0.023827,67812.0,67811.0,0.17967703]
[1729578902463,0.06792756,67812.0,67811.0,0.17967703]
[1729578902669,0.06792756,67812.0,67811.0,0.03220903]
[1729578902891,0.06792756,67812.0,67811.0,0.03320903]
[1729578903324,0.06792756,67812.0,67811.0,0.18067703]
[1729578903687,0.06792756,67812.0,67811.0,0.03420903]
[1729578904086,0.06792756,67812.0,67811.0,0.18167703]
[1729578904296,0.06793316,67812.0,67811.0,0.18167703]
[1729578904507,0.023827,67812.0,67811.0,0.18167703]
[1729578906008,0.023827,67812.0,67811.0,0.62408703]
[1729578906431,0.06793316,67812.0,67811.0,0.62408703]
[1729578906649,0.06793316,67812.0,67811.0,0.47661903]
[1729578907279,0.06793316,67812.0,67811.0,0.62408703]
[1729578907878,0.06793316,67812.0,67811.0,0.47661903]
[1729578908092,0.06793316,67812.0,67811.0,0.62408703]
[1729578908307,0.06793316,67812.0,67811.0,0.47661903]
[1729578908519,0.06793316,67812.0,67811.0,0.62408703]
[1729578909178,0.06795098,67812.0,67811.0,0.62408703]
[1729578909649,0.023827,67812.0,67811.0,0.47661903]
[1729578909886,0.0679559,67812.0,67811.0,0.62408703]
[1729578910134,0.023827,67812.0,67811.0,0.62408703]
[1729578911446,0.023827,67812.0,67811.0,0.47661903]
[1729578911665,0.09001298,67812.0,67811.0,0.47661903]
[1729578911897,0.09001298,67812.0,67811.0,0.62408703]
[1729578913492,0.18683032,67812.0,67811.0,0.62408703]
[1729578914108,0.09006338,67812.0,67811.0,0.62408703]
[1729578914241,0.023827,67812.0,67811.0,0.62408703]
[1729578914469,0.27518207,67812.0,67811.0,0.62408703]
[1729578914679,0.27518207,67812.0,67811.0,0.47661903]
[1729578914908,0.27518207,67812.0,67811.0,0.62408703]
[1729578915642,0.18686689,67812.0,67811.0,0.62408703]
[1729578916473,0.18686689,67812.0,67811.0,0.47661903]
[1729578916474,0.29726087,67812.0,67811.0,0.47661903]
[1729578917112,0.29726087,67812.0,67811.0,0.62408703]
[1729578917548,0.18686689,67812.0,67811.0,0.62408703]
[1729578917781,0.18686689,67812.0,67811.0,0.47661903]
[1729578917958,0.18686689,67812.0,67811.0,0.62408703]
[1729578918622,0.18686689,67812.0,67811.0,0.47661903]
[1729578918840,0.18686689,67812.0,67811.0,0.62408703]
[1729578919278,0.18708763,67812.0,67811.0,0.62408703]
[1729578919724,0.18781019,67812.0,67811.0,0.62408703]
[1729578923771,0.18781019,67812.0,67811.0,0.47661903]
[1729578923995,0.18782744,67812.0,67811.0,0.47661903]
[1729578924213,0.18782744,67812.0,67811.0,0.62408703]
[1729578925111,0.18782744,67812.0,67811.0,0.47661903]
[1729578925976,0.18782744,67812.0,67811.0,0.62408703]
[1729578926666,0.18710488,67812.0,67811.0,0.62408703]
[1729578926898,0.18782744,67812.0,67811.0,0.62408703]
[1729578928759,0.18782744,67812.0,67811.0,0.47661903]
[1729578929181,0.18785938,67812.0,67811.0,0.47661903]
[1729578931868,0.18785938,67812.0,67811.0,0.62408703]
[1729578933345,0.18785938,67812.0,67811.0,0.47661903]
[1729578935535,0.32058101,67812.0,67811.0,0.47661903]
[1729578936230,0.32058101,67812.0,67811.0,0.62408703]
[1729578936502,0.18785938,67812.0,67811.0,0.62408703]
[1729578937534,0.32069379,67812.0,67811.0,0.62408703]
[1729578939934,0.18785938,67812.0,67811.0,0.62408703]
[1729578940161,0.02454956,67812.0,67811.0,0.62408703]
[1729578941302,0.1879869,67812.0,67811.0,0.62408703]
[1729578941969,0.1879869,67812.0,67811.0,0.71858703]
[1729578942199,0.1649869,67812.0,67811.0,0.8900643]
[1729578942417,0.1649869,67812.0,67811.0,0.89458048]
[1729578943068,0.1649869,67812.0,67811.0,0.79788703]
[1729578943285,0.1649869,67812.0,67811.0,0.57111903]
[1729578943514,0.1649869,67812.0,67811.0,0.47661903]
[1729578943924,0.1649684,67812.0,67811.0,0.47661903]
[1729578944179,0.1879684,67812.0,67811.0,0.47561903]
[1729578944404,0.1879684,67812.0,67811.0,0.47761903]
[1729578944620,0.1879684,67812.0,67811.0,0.47561903]
[1729578944869,0.46973778,67812.0,67811.0,0.47561903]
[1729578945079,0.61720378,67812.0,67811.0,0.47661903]
[1729578945310,0.61720378,67812.0,67811.0,0.47461903]
[1729578945526,0.48439355,67812.0,67811.0,0.47461903]
[1729578945958,0.49139355,67812.0,67811.0,0.47561903]
[1729578946381,0.33692755,67812.0,67811.0,0.47461903]
[1729578946796,0.48439355,67812.0,67811.0,0.48961903]
[1729578947008,0.48439355,67812.0,67811.0,0.47961903]
[1729578947829,0.48439355,67812.0,67811.0,0.48461903]
[1729578949380,0.33692755,67812.0,67811.0,0.48461903]
[1729578949604,0.48439355,67812.0,67811.0,0.48461903]
[1729578949816,0.33692755,67812.0,67811.0,0.48461903]
[1729578950244,0.48439355,67812.0,67811.0,0.48461903]
[1729578952235,0.33692755,67812.0,67811.0,0.48461903]
[1729578952682,0.48439355,67812.0,67811.0,0.48461903]
[1729578953737,0.48440052,67812.0,67811.0,0.48461903]
[1729578953944,0.48440052,67812.0,67811.0,0.45241]
[1729578954150,0.48440052,67812.0,67811.0,0.48969915]
[1729578959111,0.484397,67812.0,67811.0,0.48969915]
[1729578959794,0.336931,67812.0,67811.0,0.48969915]
[1729578962608,0.33692824,67812.0,67811.0,0.48969915]
[1729578963308,0.48439424,67812.0,67811.0,0.48969915]
[1729578964819,0.33692824,67812.0,67811.0,0.48969915]
[1729578966618,0.33692824,67812.0,67811.0,0.58409915]
[1729578966829,0.18796909,67812.0,67811.0,0.58409915]
[1729578967523,0.18796794,67812.0,67811.0,0.58409915]
[1729578978672,0.18796794,67812.0,67811.0,0.54681]
[1729578979134,0.18796794,67812.0,67811.0,0.58710376]
[1729578979794,0.02454956,67812.0,67811.0,0.58710376]
[1729578980010,0.18796566,67812.0,67811.0,0.58710376]
[1729578982437,0.18796474,67812.0,67811.0,0.58710376]
[1729578984491,0.18796474,67812.0,67811.0,0.54681]
[1729578984894,0.18796474,67812.0,67811.0,0.58710376]
[1729578987262,0.1879691,67812.0,67811.0,0.58710376]
[1729578987909,0.3354351,67812.0,67811.0,0.58710376]
[1729578989339,0.1879691,67812.0,67811.0,0.58710376]
[1729578990470,0.3354351,67812.0,67811.0,0.58710376]
[1729578991338,0.1879691,67812.0,67811.0,0.58710376]
[1729578991768,0.1879691,67812.0,67811.0,0.54681]
[1729578991983,0.3354351,67812.0,67811.0,0.54681]
[1729578992200,0.18804183,67812.0,67811.0,0.58710376]
[1729578995121,0.18804183,67812.0,67811.0,0.57380522]
[1729578997263,0.18804369,67812.0,67811.0,0.57380522]
[1729579001664,0.33550969,67812.0,67811.0,0.57380522]
[1729579005024,0.18804369,67812.0,67811.0,0.57380522]
[1729579005444,0.33550969,67812.0,67811.0,0.57380522]
[1729579005617,0.18804369,67812.0,67811.0,0.57380522]
[1729579007019,0.02454956,67812.0,67811.0,0.57380522]
[1729579007215,0.18804307,67812.0,67811.0,0.57380522]
[1729579009999,0.18804307,67812.0,67811.0,0.64970522]
[1729579010238,0.16504307,67812.0,67811.0,0.64970522]
[1729579010454,0.29790097,67812.0,67811.0,0.64970522]
[1729579010689,0.16504307,67812.0,67811.0,0.64970522]
[1729579011587,0.16504307,67812.0,67811.0,0.62271]
[1729579011796,0.16504307,67812.0,67811.0,0.64970433]
[1729579012000,0.1650301,67812.0,67811.0,0.64970433]
[1729579020821,0.16495476,67812.0,67811.0,0.64970433]
[1729579024726,0.00154956,67812.0,67811.0,0.64970433]
[1729579024950,0.16494354,67812.0,67811.0,0.64970433]
[1729579030823,0.16494354,67812.0,67811.0,0.62271]
[1729579031049,0.16494354,67812.0,67811.0,0.6497007]
[1729579035688,0.31240954,67812.0,67811.0,0.6497007]
[1729579036219,0.16494354,67812.0,67811.0,0.6497007]
[1729579036425,0.31240954,67812.0,67811.0,0.6497007]
[1729579037317,0.16494354,67812.0,67811.0,0.6497007]
[1729579039679,0.16495059,67812.0,67811.0,0.6497007]
[1729579040417,0.31241659,67812.0,67811.0,0.5738007]
[1729579040618,0.16495059,67812.0,67811.0,0.5738007]
[1729579044020,0.16495059,67812.0,67811.0,0.61429663]
[1729579047252,0.16422803,67812.0,67811.0,0.83123591]
[1729579047506,0.27489267,67812.0,67811.0,0.84808081]
[1729579047776,0.06721671,67812.0,67811.0,0.84808081]
[1729579047989,0.000827,67812.0,67811.0,0.84808081]
[1729579048245,0.06721671,67812.0,67811.0,0.84308081]
[1729579048498,0.06721671,67812.0,67811.0,0.83808081]
[1729579048715,0.153293,67812.0,67811.0,0.60429663]
[1729579048927,0.31365122,67812.0,67811.0,0.60429663]
[1729579049155,0.31165122,67812.0,67811.0,0.60429663]
[1729579049416,0.31337378,67812.0,67811.0,0.60429663]
[1729579049646,0.16590778,67812.0,67811.0,0.60429663]
[1729579050108,0.16490778,67812.0,67811.0,0.76537518]
[1729579050346,0.16490778,67812.0,67811.0,0.9238419]
[1729579050611,0.000827,67812.0,67811.0,0.92835808]
[1729579050852,0.04507479,67812.0,67811.0,0.92835808]
[1729579051086,0.04507479,67812.0,67811.0,0.92935808]
[1729579051334,0.04507479,67812.0,67811.0,0.92835808]
[1729579051573,0.002827,67812.0,67811.0,0.92835808]
[1729579052036,0.000827,67812.0,67811.0,0.92835808]
[1729579052273,0.04607479,67812.0,67811.0,0.92835808]
[1729579052722,0.001827,67812.0,67811.0,0.92835808]
[1729579053196,0.001827,67812.0,67811.0,0.69332571]
[1729579053433,0.001827,67812.0,67811.0,0.60890953]
[1729579054129,0.11246743,67812.0,67811.0,0.60890953]
[1729579054370,0.31258884,67812.0,67811.0,0.60429663]
[1729579054590,0.31160261,67812.0,67811.0,0.50989663]
[1729579054823,0.17085935,67812.0,67811.0,0.50989663]
[1729579055063,0.48876832,67812.0,67811.0,0.50989663]
[1729579055296,0.48476832,67812.0,67811.0,0.50989663]
[1729579055541,0.48676832,67812.0,67811.0,0.44341]
[1729579055791,0.63408012,67812.0,67811.0,0.49859033]
[1729579056257,0.57694559,67812.0,67811.0,0.49859033]
[1729579056702,0.72623356,67812.0,67811.0,0.50359033]
[1729579057208,0.72723356,67812.0,67811.0,0.50359033]
[1729579057429,0.72623356,67812.0,67811.0,0.50359033]
[1729579057886,0.72623356,67812.0,67811.0,0.49859033]
[1729579058847,0.57694559,67812.0,67811.0,0.49859033]
[1729579060430,0.4136358,67812.0,67811.0,0.49859033]
[1729579060659,0.57684707,67812.0,67811.0,0.49859033]
[1729579063330,0.67684707,67812.0,67811.0,0.49859033]
[1729579063611,0.86124707,67812.0,67811.0,0.05618033]
[1729579063829,0.14869238,67803.0,67802.0,0.001654]
[1729579064056,0.57604007,67803.0,67802.0,0.001654]
[1729579064697,0.7085972,67803.0,67802.0,0.001654]
[1729579064916,0.98277447,67803.0,67802.0,0.001654]
[1729579065374,0.75804007,67803.0,67802.0,0.001654]
[1729579065587,0.85021734,67803.0,67802.0,0.001654]
[1729579066234,0.75804007,67803.0,67802.0,0.001654]
[1729579066670,0.89052802,67803.0,67802.0,0.001654]
[1729579067328,0.89003855,67803.0,67802.0,0.001654]
[1729579067746,0.7575506,67803.0,67802.0,0.001654]
[1729579071651,0.7583776,67803.0,67802.0,0.001654]
[1729579072324,0.75804225,67803.0,67802.0,0.001654]
[1729579074330,0.85021952,67803.0,67802.0,0.001654]
[1729579074541,0.95161952,67803.0,67802.0,0.001654]
[1729579075009,0.89963398,67803.0,67802.0,0.001654]
[1729579075225,0.95161952,67803.0,67802.0,0.001654]
[1729579075440,0.00071691,67788.0,67787.0,0.0998]
[1729579075885,0.02371691,67788.0,67787.0,0.14686589]
[1729579076119,0.00071691,67788.0,67787.0,0.0998]
[1729579076394,0.00071691,67788.0,67787.0,0.14686589]
[1729579076580,0.00071691,67788.0,67787.0,0.0998]
[1729579076787,0.00071691,67788.0,67787.0,0.14686589]
[1729579077871,0.11533274,67792.0,67787.0,0.14686589]
[1729579078081,0.001,67788.0,67787.0,0.15486589]
[1729579078291,0.001,67788.0,67787.0,0.16286589]
[1729579078708,0.001,67788.0,67787.0,0.15486589]
[1729579079190,0.14895915,67791.0,67787.0,0.14686589]
[1729579080119,0.14895915,67791.0,67787.0,0.15586589]
[1729579080346,0.14895915,67791.0,67787.0,0.14686589]
[1729579080576,0.001,67788.0,67787.0,0.16086589]
[1729579081034,0.147515,67790.0,67787.0,0.14686589]
[1729579081197,0.14895915,67789.0,67787.0,0.15286589]
[1729579081792,0.14895915,67789.0,67787.0,0.15586589]
[1729579082304,0.14895915,67789.0,67787.0,0.16286589]
[1729579083272,0.14895915,67789.0,67787.0,0.15386589]
[1729579083916,0.14995915,67789.0,67787.0,0.15486589]
[1729579084127,0.14995915,67789.0,67787.0,0.16286589]
[1729579085427,0.14995915,67789.0,67787.0,0.16451989]
[1729579087639,0.001,67789.0,67788.0,0.1744]
[1729579087868,0.001,67789.0,67788.0,0.42204525]
[1729579088126,0.001,67789.0,67788.0,0.37404911]
[1729579088596,0.1,67802.0,67793.0,0.147507]
[1729579088814,0.29645015,67801.0,67794.0,0.0979]
[1729579089025,0.29645015,67801.0,67795.0,0.083]
[1729579089269,0.14895915,67801.0,67795.0,0.083]
[1729579089484,0.147493,67800.0,67796.0,0.04711555]
[1729579089706,0.294985,67800.0,67796.0,0.04711555]
[1729579089922,0.147497,67798.0,67796.0,0.04711555]
[1729579090390,0.29645815,67797.0,67796.0,0.04711555]
[1729579090591,0.36353609,67797.0,67796.0,0.04711555]
[1729579090800,0.14751,67792.0,67791.0,0.0799]
[1729579092306,0.14751,67792.0,67791.0,0.0859]
[1729579092529,0.13626298,67796.0,67791.0,0.0859]
[1729579092745,0.147505,67794.0,67792.0,0.04707889]
[1729579092977,0.147507,67793.0,67792.0,0.04707889]
[1729579093409,0.14751,67792.0,67791.0,0.0939]
[1729579093626,0.14751,67792.0,67791.0,0.0799]
[1729579093833,0.59147715,67794.0,67791.0,0.0799]